[Event "Titled Tuesday Blitz March 08 Early 2022"]
[White "Bayramov, Zaur"]
[Black "Ashiev, Eduard"]
[WhiteFideId "13405080"]
[BlackFideId "4130090"]
[WhiteElo "2166"]
[BlackElo "2004"]
[Result "1-0"]
[Round "01"]
[TimeControl "180+1"]
[Date "2022.03.09"]
[WhiteClock "0:01:14"]
[BlackClock "0:00:02"]

1. d4 {[%clk 0:02:59]}  d6 {[%clk 0:02:58]} 2. Nf3 {[%clk 0:02:58]}  Bg4 {[%clk 0:02:58]} 3. Nbd2 {[%clk 0:02:57]}  Nf6 {[%clk 0:02:54]} 4. e4 {[%clk 0:02:56]}  Nbd7 {[%clk 0:02:52]} 5. c3 {[%clk 0:02:54]}  e5 {[%clk 0:02:51]} 6. Be2 {[%clk 0:02:54]}  Be7 {[%clk 0:02:50]} 7. O-O {[%clk 0:02:53]}  O-O {[%clk 0:02:50]} 8. Re1 {[%clk 0:02:54]}  c6 {[%clk 0:02:48]} 9. a4 {[%clk 0:02:53]}  Qc7 {[%clk 0:02:44]} 10. h3 {[%clk 0:02:52]}  Bh5 {[%clk 0:02:43]} 11. Qc2 {[%clk 0:02:50]}  Bg6 {[%clk 0:02:41]} 12. Nh4 {[%clk 0:02:43]}  Rad8 {[%clk 0:02:17]} 13. Nxg6 {[%clk 0:02:43]}  hxg6 {[%clk 0:02:14]} 14. Bf1 {[%clk 0:02:42]}  Rfe8 {[%clk 0:02:06]} 15. b3 {[%clk 0:02:41]}  Bf8 {[%clk 0:01:48]} 16. Bb2 {[%clk 0:02:39]}  d5 {[%clk 0:01:30]} 17. exd5 {[%clk 0:02:12]}  exd4 {[%clk 0:01:26]} 18. dxc6 {[%clk 0:02:02]}  Qxc6 {[%clk 0:01:16]} 19. Nf3 {[%clk 0:01:54]}  dxc3 {[%clk 0:01:10]} 20. Qxc3 {[%clk 0:01:53]}  Qxc3 {[%clk 0:01:07]} 21. Bxc3 {[%clk 0:01:53]}  Nc5 {[%clk 0:01:06]} 22. Bc4 {[%clk 0:01:51]}  Nce4 {[%clk 0:00:58]} 23. Bb2 {[%clk 0:01:50]}  Nd6 {[%clk 0:00:57]} 24. Bf1 {[%clk 0:01:46]}  Nde4 {[%clk 0:00:53]} 25. Red1 {[%clk 0:01:32]}  Bc5 {[%clk 0:00:49]} 26. Bd4 {[%clk 0:01:31]}  Bxd4 {[%clk 0:00:43]} 27. Rxd4 {[%clk 0:01:31]}  Rxd4 {[%clk 0:00:42]} 28. Nxd4 {[%clk 0:01:32]}  Rd8 {[%clk 0:00:41]} 29. Nf3 {[%clk 0:01:30]}  b6 {[%clk 0:00:26]} 30. Re1 {[%clk 0:01:28]}  a5 {[%clk 0:00:23]} 31. Bc4 {[%clk 0:01:27]}  Nd6 {[%clk 0:00:21]} 32. Rd1 {[%clk 0:01:26]}  Nfe4 {[%clk 0:00:15]} 33. Ne5 {[%clk 0:01:23]}  Rc8 {[%clk 0:00:14]} 34. Nxg6 {[%clk 0:01:22]}  Kh7 {[%clk 0:00:10]} 35. Ne5 {[%clk 0:01:21]}  Nxc4 {[%clk 0:00:10]} 36. Nxc4 {[%clk 0:01:20]}  b5 {[%clk 0:00:08]} 37. axb5 {[%clk 0:01:19]}  a4 {[%clk 0:00:07]} 38. Rd4 {[%clk 0:01:16]}  Nf6 {[%clk 0:00:02]} 39. bxa4 {[%clk 0:01:15]}  Ra8 {[%clk 0:00:02]} 40. Ne5 {[%clk 0:01:14]} 1-0


[Site "https://www.chess.com"]

[Event "Titled Tuesday Blitz March 08 Early 2022"]
[White "Berthier, Hugo"]
[Black "Khismatullin, Denis"]
[WhiteFideId "655864"]
[BlackFideId "4142578"]
[WhiteElo "2193"]
[BlackElo "2543"]
[Result "0-1"]
[Round "01"]
[TimeControl "180+1"]
[Date "2022.03.08"]
[WhiteClock "0:00:01"]
[BlackClock "0:00:34"]

1. d4 {[%clk 0:02:59]}  Nf6 {[%clk 0:02:54]} 2. Nf3 {[%clk 0:02:57]}  e6 {[%clk 0:02:53]} 3. Bg5 {[%clk 0:02:55]}  h6 {[%clk 0:02:53]} 4. Bh4 {[%clk 0:02:55]}  g5 {[%clk 0:02:53]} 5. Bg3 {[%clk 0:02:55]}  Ne4 {[%clk 0:02:53]} 6. Nbd2 {[%clk 0:02:52]}  Nxg3 {[%clk 0:02:52]} 7. hxg3 {[%clk 0:02:53]}  Bg7 {[%clk 0:02:53]} 8. c3 {[%clk 0:02:51]}  d6 {[%clk 0:02:51]} 9. e4 {[%clk 0:02:52]}  a6 {[%clk 0:02:49]} 10. Bd3 {[%clk 0:02:52]}  Nd7 {[%clk 0:02:46]} 11. Qe2 {[%clk 0:02:52]}  c5 {[%clk 0:02:47]} 12. a4 {[%clk 0:02:50]}  O-O {[%clk 0:02:40]} 13. e5 {[%clk 0:02:40]}  cxd4 {[%clk 0:02:40]} 14. cxd4 {[%clk 0:02:39]}  dxe5 {[%clk 0:02:26]} 15. dxe5 {[%clk 0:02:37]}  g4 {[%clk 0:02:26]} 16. Qe4 {[%clk 0:02:25]}  f5 {[%clk 0:02:25]} 17. exf6 {[%clk 0:02:20]}  Nxf6 {[%clk 0:02:25]} 18. Qg6 {[%clk 0:02:16]}  gxf3 {[%clk 0:02:25]} 19. Nxf3 {[%clk 0:02:05]}  Bd7 {[%clk 0:02:17]} 20. Bc4 {[%clk 0:01:40]}  Rc8 {[%clk 0:01:37]} 21. Bb3 {[%clk 0:01:35]}  Qa5+ {[%clk 0:01:37]} 22. Kf1 {[%clk 0:01:29]}  Qb4 {[%clk 0:01:36]} 23. Rxh6 {[%clk 0:00:38]}  Qxb3 {[%clk 0:01:27]} 24. Ng5 {[%clk 0:00:37]}  Qc4+ {[%clk 0:00:55]} 25. Kg1 {[%clk 0:00:31]}  Qc1+ {[%clk 0:00:36]} 26. Rxc1 {[%clk 0:00:26]}  Rxc1+ {[%clk 0:00:37]} 27. Kh2 {[%clk 0:00:27]}  Ng4+ {[%clk 0:00:37]} 28. Kh3 {[%clk 0:00:24]}  Nxf2+ {[%clk 0:00:38]} 29. Kh4 {[%clk 0:00:20]}  Rc4+ {[%clk 0:00:38]} 30. g4 {[%clk 0:00:11]}  Rxg4+ {[%clk 0:00:36]} 31. Kh5 {[%clk 0:00:11]}  Be8 {[%clk 0:00:36]} 32. Qxe8 {[%clk 0:00:01]}  Rxg5+ {[%clk 0:00:34]} 33. Kxg5 {[%clk 0:00:01]}  Bxh6+ {[%clk 0:00:34]} 0-1


[Site "https://www.chess.com"]

[Event "Titled Tuesday Blitz March 08 Early 2022"]
[White "Bethke, Richard"]
[Black "Le, Tuan Minh"]
[WhiteFideId "12959243"]
[BlackFideId "12401153"]
[WhiteElo "2521"]
[BlackElo "2450"]
[Result "0-1"]
[Round "01"]
[TimeControl "180+1"]
[Date "2022.03.08"]
[WhiteClock "0:00:02"]
[BlackClock "0:00:17"]

1. e4 {[%clk 0:02:57]}  c5 {[%clk 0:03:00]} 2. Nf3 {[%clk 0:02:57]}  Nf6 {[%clk 0:03:00]} 3. Nc3 {[%clk 0:02:56]}  d5 {[%clk 0:03:00]} 4. exd5 {[%clk 0:02:54]}  Nxd5 {[%clk 0:03:01]} 5. Bc4 {[%clk 0:02:52]}  Nb6 {[%clk 0:03:00]} 6. Bb5+ {[%clk 0:02:50]}  Bd7 {[%clk 0:02:56]} 7. Bxd7+ {[%clk 0:02:49]}  Qxd7 {[%clk 0:02:57]} 8. d4 {[%clk 0:02:49]}  cxd4 {[%clk 0:02:56]} 9. Qxd4 {[%clk 0:02:50]}  Nc6 {[%clk 0:02:25]} 10. Qxd7+ {[%clk 0:02:48]}  Nxd7 {[%clk 0:02:26]} 11. Be3 {[%clk 0:02:39]}  f6 {[%clk 0:02:06]} 12. O-O-O {[%clk 0:02:33]}  e5 {[%clk 0:02:06]} 13. Nb5 {[%clk 0:02:32]}  Rc8 {[%clk 0:01:50]} 14. Nd6+ {[%clk 0:02:20]}  Bxd6 {[%clk 0:01:32]} 15. Rxd6 {[%clk 0:02:21]}  Ke7 {[%clk 0:01:27]} 16. Rhd1 {[%clk 0:02:19]}  Rhd8 {[%clk 0:01:20]} 17. R6d2 {[%clk 0:02:01]}  b6 {[%clk 0:01:14]} 18. Kb1 {[%clk 0:01:59]}  Nf8 {[%clk 0:01:09]} 19. Rxd8 {[%clk 0:01:59]}  Nxd8 {[%clk 0:01:10]} 20. Nd2 {[%clk 0:01:53]}  Nfe6 {[%clk 0:01:09]} 21. Ne4 {[%clk 0:01:52]}  Nb7 {[%clk 0:01:09]} 22. c3 {[%clk 0:01:51]}  f5 {[%clk 0:01:04]} 23. Ng5 {[%clk 0:01:49]}  f4 {[%clk 0:01:05]} 24. Nxe6 {[%clk 0:01:49]}  Kxe6 {[%clk 0:00:55]} 25. Bc1 {[%clk 0:01:47]}  Nd6 {[%clk 0:00:56]} 26. Re1 {[%clk 0:01:42]}  g5 {[%clk 0:00:54]} 27. Kc2 {[%clk 0:01:31]}  h6 {[%clk 0:00:51]} 28. h4 {[%clk 0:01:28]}  Nf5 {[%clk 0:00:46]} 29. hxg5 {[%clk 0:01:16]}  hxg5 {[%clk 0:00:47]} 30. Rh1 {[%clk 0:01:03]}  Rc7 {[%clk 0:00:37]} 31. Rh5 {[%clk 0:00:43]}  Kf6 {[%clk 0:00:37]} 32. Rh8 {[%clk 0:00:43]}  Rd7 {[%clk 0:00:32]} 33. Rf8+ {[%clk 0:00:43]}  Kg6 {[%clk 0:00:32]} 34. Rg8+ {[%clk 0:00:38]}  Ng7 {[%clk 0:00:31]} 35. Bd2 {[%clk 0:00:34]}  e4 {[%clk 0:00:29]} 36. c4 {[%clk 0:00:34]}  Kf5 {[%clk 0:00:29]} 37. f3 {[%clk 0:00:26]}  e3 {[%clk 0:00:26]} 38. Rf8+ {[%clk 0:00:24]}  Kg6 {[%clk 0:00:19]} 39. Bc3 {[%clk 0:00:24]}  Rf7 {[%clk 0:00:18]} 40. Rd8 {[%clk 0:00:17]}  Nf5 {[%clk 0:00:18]} 41. Rg8+ {[%clk 0:00:15]}  Kh6 {[%clk 0:00:17]} 42. Rh8+ {[%clk 0:00:15]}  Rh7 {[%clk 0:00:17]} 43. Rf8 {[%clk 0:00:14]}  Nh4 {[%clk 0:00:18]} 44. Rf6+ {[%clk 0:00:06]}  Kh5 {[%clk 0:00:18]} 45. Kd3 {[%clk 0:00:01]}  Nxg2 {[%clk 0:00:17]} 46. Rf5 {[%clk 0:00:02]}  Nh4 {[%clk 0:00:17]} 47. Rd5 {[%clk 0:00:02]}  Nxf3 {[%clk 0:00:17]} 48. Bf6 {[%clk 0:00:02]}  Kg4 {[%clk 0:00:17]} 49. Ke4 {[%clk 0:00:02]}  e2 {[%clk 0:00:17]} 0-1


[Site "https://www.chess.com"]

[Event "Titled Tuesday Blitz March 08 Early 2022"]
[White "Blohberger, Felix"]
[Black "Qashashvili, Alexandre"]
[WhiteFideId "1632051"]
[BlackFideId "13600842"]
[WhiteElo "2474"]
[BlackElo "2316"]
[Result "1-0"]
[Round "01"]
[TimeControl "180+1"]
[Date "2022.03.09"]
[WhiteClock "0:01:46"]
[BlackClock "0:01:24"]

1. Nf3 {[%clk 0:02:59]}  c6 {[%clk 0:02:59]} 2. g3 {[%clk 0:02:59]}  d5 {[%clk 0:03:00]} 3. Bg2 {[%clk 0:03:00]}  Nf6 {[%clk 0:03:00]} 4. O-O {[%clk 0:03:00]}  Bf5 {[%clk 0:03:00]} 5. c4 {[%clk 0:03:01]}  Qc8 {[%clk 0:02:58]} 6. Qb3 {[%clk 0:02:53]}  dxc4 {[%clk 0:02:58]} 7. Qxc4 {[%clk 0:02:53]}  Bh3 {[%clk 0:02:58]} 8. Bxh3 {[%clk 0:02:47]}  Qxh3 {[%clk 0:02:57]} 9. Qxf7+ {[%clk 0:02:48]}  Kxf7 {[%clk 0:02:57]} 10. Ng5+ {[%clk 0:02:48]}  Kg6 {[%clk 0:02:53]} 11. Nxh3 {[%clk 0:02:49]}  e5 {[%clk 0:02:53]} 12. Nc3 {[%clk 0:02:48]}  Nbd7 {[%clk 0:02:52]} 13. d3 {[%clk 0:02:47]}  Bc5 {[%clk 0:02:52]} 14. Ng5 {[%clk 0:02:41]}  h6 {[%clk 0:02:47]} 15. Nge4 {[%clk 0:02:41]}  Nxe4 {[%clk 0:02:45]} 16. Nxe4 {[%clk 0:02:41]}  Be7 {[%clk 0:02:45]} 17. Be3 {[%clk 0:02:40]}  Nf6 {[%clk 0:02:44]} 18. Nxf6 {[%clk 0:02:38]}  gxf6 {[%clk 0:02:43]} 19. f4 {[%clk 0:02:37]}  Bd6 {[%clk 0:02:43]} 20. Kg2 {[%clk 0:02:33]}  Rhe8 {[%clk 0:02:41]} 21. f5+ {[%clk 0:02:33]}  Kg7 {[%clk 0:02:41]} 22. Kf3 {[%clk 0:02:33]}  Bc7 {[%clk 0:02:37]} 23. g4 {[%clk 0:02:33]}  Bb6 {[%clk 0:02:37]} 24. Bd2 {[%clk 0:02:30]}  Rad8 {[%clk 0:02:35]} 25. Bc3 {[%clk 0:02:29]}  Bd4 {[%clk 0:02:34]} 26. Rad1 {[%clk 0:02:27]}  Bxc3 {[%clk 0:02:35]} 27. bxc3 {[%clk 0:02:27]}  c5 {[%clk 0:02:35]} 28. a4 {[%clk 0:02:22]}  b6 {[%clk 0:02:35]} 29. Ke3 {[%clk 0:02:18]}  Rd6 {[%clk 0:02:34]} 30. h4 {[%clk 0:02:18]}  Rh8 {[%clk 0:02:30]} 31. Rg1 {[%clk 0:02:17]}  Kf7 {[%clk 0:02:30]} 32. Rg3 {[%clk 0:02:15]}  Ke7 {[%clk 0:02:23]} 33. Rdg1 {[%clk 0:02:13]}  Kd7 {[%clk 0:02:20]} 34. g5 {[%clk 0:02:13]}  hxg5 {[%clk 0:02:19]} 35. hxg5 {[%clk 0:02:14]}  fxg5 {[%clk 0:02:19]} 36. Rxg5 {[%clk 0:02:15]}  Kc6 {[%clk 0:02:09]} 37. Rg6 {[%clk 0:02:12]}  Rh4 {[%clk 0:02:00]} 38. R1g4 {[%clk 0:01:57]}  Rh3+ {[%clk 0:01:40]} 39. Ke4 {[%clk 0:01:49]}  Rh2 {[%clk 0:01:40]} 40. e3 {[%clk 0:01:48]}  Ra2 {[%clk 0:01:38]} 41. Kxe5 {[%clk 0:01:47]}  Rxg6 {[%clk 0:01:32]} 42. fxg6 {[%clk 0:01:47]}  Re2 {[%clk 0:01:24]} 43. e4 {[%clk 0:01:46]} 1-0


[Site "https://www.chess.com"]

[Event "Titled Tuesday Blitz March 08 Early 2022"]
[White "Bluebaum, Matthias"]
[Black "Szalay, Karoly"]
[WhiteFideId "24651516"]
[BlackFideId "2600544"]
[WhiteElo "2550"]
[BlackElo "2460"]
[Result "1-0"]
[Round "01"]
[TimeControl "180+1"]
[Date "2022.03.08"]
[WhiteClock "0:00:47"]
[BlackClock "0:00:12"]

1. b3 {[%clk 0:03:00]}  d5 {[%clk 0:03:00]} 2. Bb2 {[%clk 0:03:00]}  Nf6 {[%clk 0:02:58]} 3. Nf3 {[%clk 0:02:59]}  e6 {[%clk 0:02:58]} 4. c4 {[%clk 0:02:58]}  Be7 {[%clk 0:02:57]} 5. e3 {[%clk 0:02:58]}  O-O {[%clk 0:02:58]} 6. Nc3 {[%clk 0:02:59]}  b6 {[%clk 0:02:58]} 7. cxd5 {[%clk 0:02:59]}  Nxd5 {[%clk 0:02:58]} 8. Qc2 {[%clk 0:02:59]}  Bb7 {[%clk 0:02:58]} 9. h4 {[%clk 0:03:00]}  Bf6 {[%clk 0:02:57]} 10. Ng5 {[%clk 0:02:55]}  g6 {[%clk 0:02:57]} 11. Nxd5 {[%clk 0:02:38]}  Bxd5 {[%clk 0:02:55]} 12. Bd3 {[%clk 0:02:26]}  Bxb2 {[%clk 0:02:18]} 13. Qxb2 {[%clk 0:02:25]}  Bxg2 {[%clk 0:02:19]} 14. Rg1 {[%clk 0:02:25]}  Qxd3 {[%clk 0:02:16]} 15. Rxg2 {[%clk 0:02:25]}  Nd7 {[%clk 0:01:56]} 16. Rc1 {[%clk 0:02:18]}  c5 {[%clk 0:01:54]} 17. h5 {[%clk 0:02:12]}  Qd5 {[%clk 0:01:28]} 18. Rg1 {[%clk 0:02:04]}  Ne5 {[%clk 0:01:26]} 19. Rc3 {[%clk 0:01:50]}  Nd3+ {[%clk 0:01:11]} 20. Rxd3 {[%clk 0:01:50]}  Qxd3 {[%clk 0:01:11]} 21. h6 {[%clk 0:01:39]}  f6 {[%clk 0:01:07]} 22. Nxe6 {[%clk 0:01:39]}  Rf7 {[%clk 0:01:04]} 23. Nf4 {[%clk 0:01:39]}  Qe4 {[%clk 0:00:59]} 24. d3 {[%clk 0:01:38]}  Qe5 {[%clk 0:00:58]} 25. Qb1 {[%clk 0:01:19]}  Re8 {[%clk 0:00:45]} 26. Kf1 {[%clk 0:01:19]}  Qf5 {[%clk 0:00:41]} 27. Rg3 {[%clk 0:01:15]}  Rd7 {[%clk 0:00:38]} 28. b4 {[%clk 0:01:00]}  Kf8 {[%clk 0:00:33]} 29. bxc5 {[%clk 0:00:59]}  Qxc5 {[%clk 0:00:31]} 30. Qb2 {[%clk 0:00:59]}  Qc6 {[%clk 0:00:22]} 31. Kg1 {[%clk 0:00:55]}  Re5 {[%clk 0:00:21]} 32. d4 {[%clk 0:00:53]}  Rg5 {[%clk 0:00:21]} 33. Rxg5 {[%clk 0:00:51]}  fxg5 {[%clk 0:00:22]} 34. d5 {[%clk 0:00:52]}  Rxd5 {[%clk 0:00:11]} 35. Qh8+ {[%clk 0:00:44]}  Ke7 {[%clk 0:00:09]} 36. Qxh7+ {[%clk 0:00:45]}  Kf8 {[%clk 0:00:10]} 37. Qg7+ {[%clk 0:00:45]}  Ke8 {[%clk 0:00:10]} 38. Qg8+ {[%clk 0:00:45]}  Ke7 {[%clk 0:00:11]} 39. Nxd5+ {[%clk 0:00:46]}  Kd6 {[%clk 0:00:11]} 40. Qxg6+ {[%clk 0:00:45]}  Kxd5 {[%clk 0:00:12]} 41. Qxc6+ {[%clk 0:00:46]}  Kxc6 {[%clk 0:00:12]} 42. h7 {[%clk 0:00:47]} 1-0


[Site "https://www.chess.com"]

[Event "Titled Tuesday Blitz March 08 Early 2022"]
[White "Boruchovsky, Avital"]
[Black "Buscar, Michael"]
[WhiteFideId "2800055"]
[BlackFideId "2603616"]
[WhiteElo "2469"]
[BlackElo "2010"]
[Result "1-0"]
[Round "01"]
[TimeControl "180+1"]
[Date "2022.03.09"]
[WhiteClock "0:00:41"]
[BlackClock "0:00:18"]

1. d4 {[%clk 0:02:42]}  d5 {[%clk 0:02:57]} 2. Nf3 {[%clk 0:02:41]}  e6 {[%clk 0:02:55]} 3. Bf4 {[%clk 0:02:41]}  c5 {[%clk 0:02:50]} 4. e3 {[%clk 0:02:40]}  Qb6 {[%clk 0:02:47]} 5. Nc3 {[%clk 0:02:39]}  cxd4 {[%clk 0:02:42]} 6. exd4 {[%clk 0:02:36]}  Bd6 {[%clk 0:02:35]} 7. Bxd6 {[%clk 0:02:35]}  Qxd6 {[%clk 0:02:35]} 8. Bd3 {[%clk 0:02:35]}  Ne7 {[%clk 0:02:26]} 9. Ne2 {[%clk 0:02:34]}  Ng6 {[%clk 0:02:26]} 10. O-O {[%clk 0:02:33]}  Nd7 {[%clk 0:02:26]} 11. c3 {[%clk 0:02:29]}  O-O {[%clk 0:02:24]} 12. Qc2 {[%clk 0:02:28]}  e5 {[%clk 0:02:18]} 13. dxe5 {[%clk 0:02:27]}  Ndxe5 {[%clk 0:02:18]} 14. Nxe5 {[%clk 0:02:27]}  Qxe5 {[%clk 0:02:18]} 15. Rfe1 {[%clk 0:02:22]}  Qg5 {[%clk 0:02:11]} 16. Ng3 {[%clk 0:02:15]}  Be6 {[%clk 0:02:04]} 17. Re3 {[%clk 0:02:12]}  Rfd8 {[%clk 0:02:04]} 18. Ne2 {[%clk 0:02:05]}  h6 {[%clk 0:01:45]} 19. Nd4 {[%clk 0:02:02]}  Nf4 {[%clk 0:01:37]} 20. Rg3 {[%clk 0:02:01]}  Qf6 {[%clk 0:01:37]} 21. Re1 {[%clk 0:01:59]}  Rac8 {[%clk 0:01:30]} 22. Qd2 {[%clk 0:01:57]}  Rd6 {[%clk 0:01:08]} 23. Bf1 {[%clk 0:01:56]}  g5 {[%clk 0:00:50]} 24. Rge3 {[%clk 0:01:52]}  Bf5 {[%clk 0:00:49]} 25. g3 {[%clk 0:01:40]}  Ne6 {[%clk 0:00:49]} 26. Nxf5 {[%clk 0:01:36]}  Qxf5 {[%clk 0:00:49]} 27. Re5 {[%clk 0:01:36]}  Qg4 {[%clk 0:00:32]} 28. Rxd5 {[%clk 0:01:31]}  Rxd5 {[%clk 0:00:31]} 29. Qxd5 {[%clk 0:01:32]}  Rd8 {[%clk 0:00:30]} 30. Qxb7 {[%clk 0:01:31]}  Rd2 {[%clk 0:00:30]} 31. Qxa7 {[%clk 0:01:21]}  Rxb2 {[%clk 0:00:29]} 32. a4 {[%clk 0:01:20]}  Ra2 {[%clk 0:00:29]} 33. a5 {[%clk 0:01:19]}  Qf5 {[%clk 0:00:29]} 34. a6 {[%clk 0:01:15]}  Nc5 {[%clk 0:00:29]} 35. Be2 {[%clk 0:00:51]}  Rxa6 {[%clk 0:00:29]} 36. Bxa6 {[%clk 0:00:49]}  g4 {[%clk 0:00:20]} 37. Bc4 {[%clk 0:00:44]}  Kg7 {[%clk 0:00:18]} 38. Qe7 {[%clk 0:00:41]} 1-0


[Site "https://www.chess.com"]

[Event "Titled Tuesday Blitz March 08 Early 2022"]
[White "Bryakin, Mikhail"]
[Black "Daianu, Cristian-Clement"]
[WhiteFideId "4165314"]
[BlackFideId "1208926"]
[WhiteElo "2417"]
[BlackElo "2159"]
[Result "1-0"]
[Round "01"]
[TimeControl "180+1"]
[Date "2022.03.09"]
[WhiteClock "0:00:58"]
[BlackClock "0:00:35"]

1. e4 {[%clk 0:03:00]}  c5 {[%clk 0:02:54]} 2. c3 {[%clk 0:02:53]}  d5 {[%clk 0:02:54]} 3. exd5 {[%clk 0:02:53]}  Nf6 {[%clk 0:02:55]} 4. d4 {[%clk 0:02:50]}  cxd4 {[%clk 0:02:55]} 5. Qxd4 {[%clk 0:02:49]}  Qxd5 {[%clk 0:02:55]} 6. Qxd5 {[%clk 0:02:45]}  Nxd5 {[%clk 0:02:56]} 7. Nf3 {[%clk 0:02:45]}  Nc6 {[%clk 0:02:55]} 8. Be2 {[%clk 0:02:40]}  g6 {[%clk 0:02:49]} 9. Nbd2 {[%clk 0:02:37]}  Bg7 {[%clk 0:02:36]} 10. Nb3 {[%clk 0:02:37]}  O-O {[%clk 0:02:35]} 11. h4 {[%clk 0:02:35]}  b6 {[%clk 0:02:33]} 12. h5 {[%clk 0:02:34]}  Bb7 {[%clk 0:02:33]} 13. h6 {[%clk 0:02:33]}  Bf6 {[%clk 0:02:33]} 14. Bg5 {[%clk 0:02:34]}  Rfd8 {[%clk 0:02:31]} 15. Bxf6 {[%clk 0:02:33]}  Nxf6 {[%clk 0:02:31]} 16. Rh4 {[%clk 0:02:31]}  Rd7 {[%clk 0:02:22]} 17. Rd1 {[%clk 0:02:29]}  Rad8 {[%clk 0:02:22]} 18. Rxd7 {[%clk 0:02:29]}  Rxd7 {[%clk 0:02:23]} 19. g3 {[%clk 0:02:27]}  Nh5 {[%clk 0:02:06]} 20. Nfd4 {[%clk 0:02:23]}  Nxd4 {[%clk 0:01:54]} 21. Rxd4 {[%clk 0:02:19]}  Rxd4 {[%clk 0:01:54]} 22. Nxd4 {[%clk 0:02:20]}  Nf6 {[%clk 0:01:50]} 23. Nb5 {[%clk 0:02:18]}  a6 {[%clk 0:01:49]} 24. Nc7 {[%clk 0:02:19]}  b5 {[%clk 0:01:47]} 25. a4 {[%clk 0:02:19]}  bxa4 {[%clk 0:01:46]} 26. Bxa6 {[%clk 0:02:18]}  Bc6 {[%clk 0:01:42]} 27. Be2 {[%clk 0:02:13]}  Kf8 {[%clk 0:01:41]} 28. Kd2 {[%clk 0:02:11]}  e5 {[%clk 0:01:41]} 29. Na6 {[%clk 0:02:00]}  Ke7 {[%clk 0:01:35]} 30. Nb4 {[%clk 0:01:58]}  Bd7 {[%clk 0:01:33]} 31. c4 {[%clk 0:01:55]}  Kd6 {[%clk 0:01:34]} 32. Nd3 {[%clk 0:01:51]}  Ng8 {[%clk 0:01:25]} 33. Kc3 {[%clk 0:01:45]}  e4 {[%clk 0:01:15]} 34. Nf4 {[%clk 0:01:34]}  Nxh6 {[%clk 0:01:14]} 35. Kb4 {[%clk 0:01:35]}  Nf5 {[%clk 0:01:12]} 36. c5+ {[%clk 0:01:33]}  Kc7 {[%clk 0:01:04]} 37. Nd5+ {[%clk 0:01:32]}  Kd8 {[%clk 0:01:02]} 38. Bb5 {[%clk 0:01:29]}  Be6 {[%clk 0:00:48]} 39. Nc3 {[%clk 0:01:12]}  e3 {[%clk 0:00:43]} 40. fxe3 {[%clk 0:01:12]}  Nxg3 {[%clk 0:00:43]} 41. Bxa4 {[%clk 0:01:02]}  h5 {[%clk 0:00:43]} 42. Bc6 {[%clk 0:01:02]}  h4 {[%clk 0:00:43]} 43. Nd1 {[%clk 0:00:59]}  h3 {[%clk 0:00:42]} 44. Nf2 {[%clk 0:01:00]}  h2 {[%clk 0:00:42]} 45. Ka5 {[%clk 0:01:00]}  Kc7 {[%clk 0:00:42]} 46. Bg2 {[%clk 0:01:00]}  Bd7 {[%clk 0:00:41]} 47. b4 {[%clk 0:00:56]}  Bc6 {[%clk 0:00:41]} 48. Bxc6 {[%clk 0:00:57]}  Kxc6 {[%clk 0:00:41]} 49. Ka6 {[%clk 0:00:58]}  h1=Q {[%clk 0:00:37]} 50. Nxh1 {[%clk 0:00:58]}  Nxh1 {[%clk 0:00:37]} 51. b5+ {[%clk 0:00:58]}  Kc7 {[%clk 0:00:35]} 52. Ka7 {[%clk 0:00:58]} 1-0


[Site "https://www.chess.com"]

[Event "Titled Tuesday Blitz March 08 Early 2022"]
[White "Budrewicz, Krzysztof"]
[Black "Roebers, Jan"]
[WhiteFideId "1127950"]
[BlackFideId "1007815"]
[WhiteElo "2248"]
[BlackElo "2120"]
[Result "1-0"]
[Round "01"]
[TimeControl "180+1"]
[Date "2022.03.09"]
[WhiteClock "0:01:00"]
[BlackClock "0:00:01"]

1. d4 {[%clk 0:03:00]}  Nf6 {[%clk 0:02:56]} 2. c4 {[%clk 0:02:59]}  g6 {[%clk 0:02:55]} 3. Nc3 {[%clk 0:02:59]}  Bg7 {[%clk 0:02:55]} 4. e4 {[%clk 0:02:58]}  d6 {[%clk 0:02:55]} 5. g3 {[%clk 0:02:58]}  O-O {[%clk 0:02:54]} 6. Bg2 {[%clk 0:02:58]}  e5 {[%clk 0:02:52]} 7. d5 {[%clk 0:02:57]}  a5 {[%clk 0:02:50]} 8. Nge2 {[%clk 0:02:57]}  Na6 {[%clk 0:02:50]} 9. O-O {[%clk 0:02:56]}  Nc5 {[%clk 0:02:47]} 10. h3 {[%clk 0:02:55]}  Nh5 {[%clk 0:02:35]} 11. g4 {[%clk 0:02:40]}  Nf6 {[%clk 0:02:30]} 12. Ng3 {[%clk 0:02:40]}  Bd7 {[%clk 0:02:19]} 13. Be3 {[%clk 0:02:39]}  b6 {[%clk 0:02:17]} 14. b3 {[%clk 0:02:35]}  Ne8 {[%clk 0:02:11]} 15. Qd2 {[%clk 0:02:23]}  f5 {[%clk 0:02:10]} 16. exf5 {[%clk 0:02:17]}  gxf5 {[%clk 0:02:09]} 17. gxf5 {[%clk 0:02:17]}  Bxf5 {[%clk 0:02:05]} 18. Nxf5 {[%clk 0:02:17]}  Rxf5 {[%clk 0:02:05]} 19. Ne4 {[%clk 0:02:17]}  Nf6 {[%clk 0:01:55]} 20. Ng3 {[%clk 0:02:11]}  Rf4 {[%clk 0:01:48]} 21. Bxf4 {[%clk 0:02:11]}  exf4 {[%clk 0:01:48]} 22. Qxf4 {[%clk 0:02:11]}  Nd3 {[%clk 0:01:39]} 23. Qf5 {[%clk 0:02:06]}  Ne5 {[%clk 0:01:36]} 24. Rae1 {[%clk 0:02:04]}  Qd7 {[%clk 0:01:17]} 25. Qxd7 {[%clk 0:02:01]}  Nexd7 {[%clk 0:01:15]} 26. f4 {[%clk 0:02:00]}  a4 {[%clk 0:01:07]} 27. b4 {[%clk 0:01:57]}  a3 {[%clk 0:01:06]} 28. Nf5 {[%clk 0:01:53]}  Bf8 {[%clk 0:00:56]} 29. Bf3 {[%clk 0:01:47]}  Ra4 {[%clk 0:00:51]} 30. Rb1 {[%clk 0:01:46]}  b5 {[%clk 0:00:47]} 31. cxb5 {[%clk 0:01:42]}  Nb6 {[%clk 0:00:47]} 32. Rfd1 {[%clk 0:01:37]}  Ra8 {[%clk 0:00:44]} 33. Rbc1 {[%clk 0:01:34]}  Ra4 {[%clk 0:00:36]} 34. Rd4 {[%clk 0:01:33]}  Na8 {[%clk 0:00:29]} 35. Kf2 {[%clk 0:01:29]}  Nd7 {[%clk 0:00:26]} 36. Rc6 {[%clk 0:01:20]}  Ndb6 {[%clk 0:00:25]} 37. Bd1 {[%clk 0:01:18]}  Ra7 {[%clk 0:00:23]} 38. Bb3 {[%clk 0:01:18]}  Kf7 {[%clk 0:00:20]} 39. Re4 {[%clk 0:01:17]}  Kf6 {[%clk 0:00:19]} 40. Nd4 {[%clk 0:01:17]}  Rb7 {[%clk 0:00:15]} 41. Re6+ {[%clk 0:01:16]}  Kf7 {[%clk 0:00:14]} 42. Kf3 {[%clk 0:01:16]}  Rb8 {[%clk 0:00:14]} 43. Nf5 {[%clk 0:01:15]}  Nd7 {[%clk 0:00:06]} 44. Nd4 {[%clk 0:01:04]}  Nf6 {[%clk 0:00:02]} 45. Re1 {[%clk 0:01:01]}  Bg7 {[%clk 0:00:01]} 46. Rec1 {[%clk 0:01:00]} 1-0


[Site "https://www.chess.com"]